fUST/lending_fUST_20250926
["ID","MTS","AMOUNT","RATE_DAILY","PERIOD"]
[387799762,1758881453148,-450.0,0.00039468,5]
[387799763,1758881453158,-211.049101,0.0003951,60]
[387799764,1758881453168,-2500.0,0.00039664,5]
[387799765,1758881453178,-151.84293406,0.00039664,5]
[387799766,1758881453187,-495.70456173,0.00039726,30]
[387799767,1758881453196,-480.0,0.00039726,30]
[387799768,1758881453206,-480.0,0.00039726,30]
[387799769,1758881453215,-480.0,0.00039726,30]
[387799770,1758881453225,-480.0,0.00039726,30]
[387799771,1758881453234,-480.0,0.00039726,30]
[387799772,1758881453244,-480.0,0.00039726,30]
[387799773,1758881453253,-480.0,0.00039726,30]
[387799774,1758881453262,-346.47681763,0.00039726,30]
[387799775,1758881453272,-480.0,0.00039726,30]
[387799776,1758881453281,-647.07,0.00039726,30]
[387799777,1758881453290,-480.0,0.00039726,30]
[387799778,1758881453300,-701.94,0.00039726,30]
[387799779,1758881453309,-832.52,0.00039726,30]
[387799780,1758881453318,-480.0,0.00039726,30]
[387799781,1758881453327,-499.26,0.00039726,30]
[387799782,1758881453337,-480.0,0.00039726,30]
[387799783,1758881453346,-480.0,0.00039726,30]
[387799784,1758881453355,-947.96,0.00039726,30]
[387799785,1758881453365,-480.0,0.00039726,30]
[387799786,1758881453374,-480.0,0.00039726,30]
[387799787,1758881453383,-480.0,0.00039726,30]
[387799788,1758881453391,-480.0,0.00039726,30]
[387799789,1758881453401,-480.0,0.00039726,30]
[387799790,1758881453410,-480.0,0.00039726,30]
[387799791,1758881453420,-480.0,0.00039726,30]
[387799792,1758881453430,-480.0,0.00039726,30]
[387799793,1758881453439,-695.06,0.00039726,30]
[387799794,1758881453448,-2156.02,0.00039726,30]
[387799795,1758881453458,-480.0,0.00039726,30]
[387799796,1758881453467,-480.0,0.00039726,30]
[387799797,1758881453481,-510.39,0.00039726,30]
[387799798,1758881453490,-480.0,0.00039726,30]
[387799799,1758881453499,-480.0,0.00039726,30]
[387799800,1758881453508,-480.0,0.00039726,30]
[387799801,1758881453519,-1173.95,0.00039726,30]
[387799802,1758881453527,-480.0,0.00039726,30]
[387799803,1758881453536,-480.0,0.00039726,30]
[387799804,1758881453546,-3727.55,0.00039726,30]
[387799805,1758881453555,-480.0,0.00039726,30]
[387799806,1758881453566,-804.45,0.00039726,30]
[387799807,1758881453576,-480.0,0.00039726,30]
[387799808,1758881453585,-480.0,0.00039726,30]
[387799809,1758881453594,-5582.33,0.00039726,30]
[387799810,1758881453604,-480.0,0.00039726,30]
[387799811,1758881453614,-678.62,0.00039726,30]
[387799812,1758881453623,-3073.8,0.00039726,30]
[387799813,1758881453635,-480.0,0.00039726,30]
[387799814,1758881453645,-925.22,0.00039726,30]
[387799815,1758881453654,-480.0,0.00039726,30]
[387799816,1758881453664,-1494.72,0.00039726,30]
[387799817,1758881453674,-480.0,0.00039726,30]
[387799818,1758881453684,-480.0,0.00039726,30]
[387799819,1758881453693,-480.0,0.00039726,30]
[387799820,1758881453702,-769.7,0.00039726,30]
[387799821,1758881453712,-376.8773315,0.00039726,30]
[387799822,1758881453721,-480.0,0.00039726,30]
[387799823,1758881453731,-480.0,0.00039726,30]
[387799824,1758881453740,-480.0,0.00039726,30]
[387799825,1758881453750,-1113.02,0.00039726,30]
[387799826,1758881453759,-894.64,0.00039726,30]
[387799827,1758881453770,-576.36,0.00039726,30]
[387799828,1758881453779,-480.0,0.00039726,30]
[387799829,1758881453788,-480.0,0.00039726,30]
[387799830,1758881453798,-233.13302363,0.00039726,30]
[387799831,1758881453808,-1846.79,0.00039726,30]
[387799832,1758881453817,-980.47,0.00039726,30]
[387799833,1758881453826,-480.0,0.00039726,30]
[387799834,1758881453836,-509.86,0.00039726,30]
[387799835,1758881453846,-535.07752607,0.00039726,30]
[387799836,1758881453856,-480.0,0.00039726,30]
[387799837,1758881453866,-480.0,0.00039726,30]
[387799838,1758881453878,-480.0,0.00039726,30]
[387799839,1758881453888,-540.0,0.00039726,30]
[387799840,1758881453897,-3940.36,0.00039726,30]
[387799841,1758881453999,-480.0,0.00039726,30]
[387799842,1758881454010,-462.04801893,0.00039726,30]
[387799843,1758881454019,-480.0,0.00039726,30]
[387799844,1758881454028,-501.24,0.00039726,30]
[387799845,1758881454038,-480.0,0.00039726,30]
[387799846,1758881454047,-480.0,0.00039726,30]
[387799847,1758881454057,-480.0,0.00039726,30]
[387799848,1758881454067,-485.89908423,0.00039726,30]
[387799849,1758881454076,-480.0,0.00039726,30]
[387799850,1758881454085,-480.0,0.00039726,30]
[387799851,1758881454094,-480.0,0.00039726,30]
[387799852,1758881454103,-480.0,0.00039726,30]
[387799853,1758881454113,-737.32,0.00039726,30]
[387799854,1758881454122,-480.0,0.00039726,30]
[387799855,1758881454134,-480.0,0.00039726,30]
[387799856,1758881454143,-738.47,0.00039726,21]
[387799857,1758881454153,-480.0,0.00039726,30]
[387799858,1758881454162,-1437.44,0.00039726,30]
[387799859,1758881454171,-901.43,0.00039726,30]
[387799860,1758881454181,-629.26,0.00039726,30]
[387799861,1758881454190,-1829.68,0.00039726,3]
[387799862,1758881454199,-480.0,0.00039726,30]
[387799863,1758881454209,-1293.99,0.00039726,30]
[387799864,1758881454219,-480.0,0.00039726,30]
[387799865,1758881454228,-480.0,0.00039726,30]
[387799866,1758881454237,-1545.06,0.00039726,30]
[387799867,1758881454247,-480.0,0.00039726,30]
[387799868,1758881454256,-571.66,0.00039726,30]
[387799869,1758881454265,-759.11,0.00039726,30]
[387799870,1758881454275,-1618.94,0.00039726,30]
[387799871,1758881454285,-480.0,0.00039726,30]
[387799872,1758881454295,-480.0,0.00039726,30]
[387799873,1758881454304,-480.0,0.00039726,30]
[387799874,1758881454314,-1400.63,0.00039726,30]
[387799875,1758881454324,-6529.19,0.00039726,30]
[387799876,1758881454333,-1015.05,0.00039726,30]
[387799877,1758881454343,-480.0,0.00039726,30]
[387799878,1758881454352,-480.0,0.00039726,30]
[387799879,1758881454361,-670.08,0.00039726,30]
[387799880,1758881454370,-480.0,0.00039726,30]
[387799881,1758881454380,-480.0,0.00039726,30]
[387799882,1758881454389,-480.0,0.00039726,30]
[387799883,1758881454398,-1232.57,0.00039726,30]
[387799884,1758881454407,-480.0,0.00039726,30]
[387799885,1758881454417,-6220.18530818,0.00039757,2]
[387799886,1758881454427,-1413.57106547,0.00039757,2]
[387799887,1758881454436,-1506.09719775,0.000398,120]
[387799888,1758881454446,-500.0,0.00039821,5]
[387799889,1758881454455,-232.8026537,0.00039883,34]
[387799890,1758881454465,-605.31,0.00039903,120]
[387799891,1758881454479,-200.27663366,0.00039999,31]
[387799892,1758881454488,-500.0,0.00039999,31]
[387799893,1758881454498,-533.20955962,0.00039999,31]
[387799894,1758881454507,-500.0,0.00039999,31]
[387799895,1758881454517,-500.0,0.00039999,31]
[387799896,1758881454527,-500.0,0.00039999,31]
[387799897,1758881454537,-500.0,0.00039999,31]
[387799898,1758881454546,-595.58266936,0.00039999,31]
[387799899,1758881454557,-500.0,0.00039999,31]
[387799900,1758881454567,-326.94773457,0.00039999,31]
[387799901,1758881454576,-500.0,0.0004,2]
[387799902,1758881454586,-12286.22359057,0.0004,15]
[387799903,1758881454595,-90000.0,0.0004,10]
[387799904,1758881454605,-2000.0,0.0004,26]
[387799905,1758881454615,-1400.0,0.0004,120]
[387799906,1758881454625,-4706.24592637,0.0004,120]
[387799907,1758881454635,-480.0,0.0004,30]
[387799908,1758881454646,-480.0,0.0004,30]
[387799909,1758881454655,-480.0,0.0004,30]
[387799910,1758881454665,-480.0,0.0004,30]
[387799911,1758881454675,-480.0,0.0004,30]
[387799912,1758881454685,-480.0,0.0004,30]
[387799913,1758881454695,-480.0,0.0004,30]
[387799914,1758881454705,-537.67347764,0.0004,30]
[387799915,1758881454715,-647.07,0.0004,30]
[387799916,1758881454725,-480.0,0.0004,30]
[387799917,1758881454735,-701.94,0.0004,30]
[387799918,1758881454745,-832.52,0.0004,30]
[387799919,1758881454754,-480.0,0.0004,30]
[387799920,1758881454764,-499.26,0.0004,30]
[387799921,1758881454773,-480.0,0.0004,30]
[387799922,1758881454783,-480.0,0.0004,30]
[387799923,1758881454793,-947.96,0.0004,30]
[387799924,1758881454802,-480.0,0.0004,30]
[387799925,1758881454811,-480.0,0.0004,30]
[387799926,1758881454821,-480.0,0.0004,30]
[387799927,1758881454830,-480.0,0.0004,30]
[387799928,1758881454839,-480.0,0.0004,30]
[387799929,1758881454849,-480.0,0.0004,30]
[387799930,1758881454858,-480.0,0.0004,30]
[387799931,1758881454868,-695.06,0.0004,30]
[387799932,1758881454878,-2156.02,0.0004,30]
[387799933,1758881454887,-480.0,0.0004,30]
[387799934,1758881454896,-457.36567211,0.0004,30]
[387799935,1758881454906,-510.39,0.0004,30]
[387799936,1758881454915,-480.0,0.0004,30]
[387799937,1758881454925,-480.0,0.0004,30]
[387799938,1758881454935,-480.0,0.0004,30]
[387799939,1758881454944,-1173.95,0.0004,30]
[387799940,1758881454953,-480.0,0.0004,30]
[387799941,1758881454962,-480.0,0.0004,30]
[387799942,1758881454974,-3727.55,0.0004,30]
[387799943,1758881454983,-480.0,0.0004,30]
[387799944,1758881454992,-804.45,0.0004,30]
[387799945,1758881455002,-480.0,0.0004,30]
[387799946,1758881455010,-480.0,0.0004,30]
[387799947,1758881455019,-5582.33,0.0004,30]
[387799948,1758881455028,-480.0,0.0004,30]
[387799949,1758881455037,-678.62,0.0004,30]
[387799950,1758881455047,-3073.8,0.0004,30]
[387799951,1758881455056,-480.0,0.0004,30]
[387799952,1758881455066,-925.22,0.0004,30]
[387799953,1758881455075,-480.0,0.0004,30]
[387799954,1758881455084,-480.0,0.0004,30]
[387799955,1758881455093,-480.0,0.0004,30]
[387799956,1758881455102,-1494.72,0.0004,30]
[387799957,1758881455111,-480.0,0.0004,30]
[387799958,1758881455121,-769.7,0.0004,30]
[387799959,1758881455132,-480.0,0.0004,30]
[387799960,1758881455141,-490.73865213,0.0004,30]
[387799961,1758881455151,-480.0,0.0004,30]
[387799962,1758881455160,-1113.02,0.0004,30]
[387799963,1758881455170,-894.64,0.0004,30]
[387799964,1758881455179,-576.36,0.0004,30]
[387799965,1758881455188,-480.0,0.0004,30]
[387799966,1758881455197,-480.0,0.0004,30]
[387799967,1758881455206,-1846.79,0.0004,30]
[387799968,1758881455215,-980.47,0.0004,30]
[387799969,1758881455224,-480.0,0.0004,30]
[387799970,1758881455233,-509.86,0.0004,30]
[387799971,1758881455242,-480.0,0.0004,30]
[387799972,1758881455251,-480.0,0.0004,30]
[387799973,1758881455261,-480.0,0.0004,30]
[387799974,1758881455270,-540.0,0.0004,30]
[387799975,1758881455279,-3940.36,0.0004,30]
[387799976,1758881455290,-480.0,0.0004,30]
[387799977,1758881455299,-480.0,0.0004,30]
[387799978,1758881455308,-501.24,0.0004,30]
[387799979,1758881455317,-480.0,0.0004,30]
[387799980,1758881455326,-480.0,0.0004,30]
[387799981,1758881455336,-480.0,0.0004,30]
[387799982,1758881455346,-480.0,0.0004,30]
[387799983,1758881455355,-480.0,0.0004,30]
[387799984,1758881455364,-480.0,0.0004,30]
[387799985,1758881455374,-480.0,0.0004,30]
[387799986,1758881455384,-737.32,0.0004,30]
[387799987,1758881455394,-480.0,0.0004,30]
[387799988,1758881455404,-480.0,0.0004,30]
[387799989,1758881455414,-738.47,0.0004,21]
[387799990,1758881455425,-480.0,0.0004,30]
[387799991,1758881455435,-1437.44,0.0004,30]
[387799992,1758881455444,-901.43,0.0004,30]
[387799993,1758881455454,-629.26,0.0004,30]
[387799994,1758881455465,-1829.68,0.0004,3]
[387799995,1758881455477,-480.0,0.0004,30]
[387799996,1758881455486,-1293.99,0.0004,30]
[387799997,1758881455495,-480.0,0.0004,30]
[387799998,1758881455503,-480.0,0.0004,30]
[387799999,1758881455513,-1545.06,0.0004,30]
[387800000,1758881455522,-532.81098962,0.0004,30]
[387800001,1758881455531,-571.66,0.0004,30]
[387800002,1758881455540,-759.11,0.0004,30]
[387800003,1758881455551,-1618.94,0.0004,30]
[387800004,1758881455560,-2439.54,0.0004,14]
[387800005,1758881455568,-480.0,0.0004,30]
[387800006,1758881455577,-480.0,0.0004,30]
[387800007,1758881455586,-1400.63,0.0004,30]
[387800008,1758881455598,-6529.19,0.0004,30]
[387800009,1758881455612,-1015.05,0.0004,30]
[387800010,1758881455624,-480.73891415,0.0004,30]
[387800011,1758881455633,-480.0,0.0004,30]
[387800012,1758881455643,-670.08,0.0004,30]
[387800013,1758881455653,-480.0,0.0004,30]
[387800014,1758881455662,-480.0,0.0004,30]
[387800015,1758881455671,-480.0,0.0004,30]
[387800016,1758881455680,-1232.57,0.0004,30]
[387800017,1758881455690,-480.0,0.0004,30]
[387800018,1758881455699,-211.06755966,0.00040016,5]
[387800019,1758881455708,-1008.2223928,0.00040212,5]
[387800020,1758881455717,-480.0,0.00040273,30]
[387800021,1758881455727,-480.0,0.00040273,30]
[387800022,1758881455737,-480.0,0.00040273,30]
[387800023,1758881455746,-480.0,0.00040273,30]
[387800024,1758881455757,-480.0,0.00040273,30]
[387800025,1758881455766,-480.0,0.00040273,30]
[387800026,1758881455775,-480.0,0.00040273,30]
[387800027,1758881455785,-647.07,0.00040273,30]
[387800028,1758881455795,-480.0,0.00040273,30]
[387800029,1758881455804,-701.94,0.00040273,30]
[387800030,1758881455814,-832.52,0.00040273,30]
[387800031,1758881455824,-480.0,0.00040273,30]
[387800032,1758881455833,-499.26,0.00040273,30]
[387800033,1758881455842,-480.0,0.00040273,30]
[387800034,1758881455852,-480.0,0.00040273,30]
[387800035,1758881455861,-947.96,0.00040273,30]
[387800036,1758881455871,-480.0,0.00040273,30]
[387800037,1758881455881,-480.0,0.00040273,30]
[387800038,1758881455890,-480.0,0.00040273,30]
[387800039,1758881455899,-480.0,0.00040273,30]
[387800040,1758881455907,-286.73124926,0.00040273,30]
[387800041,1758881455917,-261.36525257,0.00040273,30]
[387800042,1758881455926,-480.0,0.00040273,30]
[387800043,1758881455935,-695.06,0.00040273,30]
[387800044,1758881455945,-2156.02,0.00040273,30]
[387800045,1758881455954,-480.0,0.00040273,30]
[387800046,1758881455964,-510.39,0.00040273,30]
[387800047,1758881455973,-480.0,0.00040273,30]
[387800048,1758881455983,-480.0,0.00040273,30]
[387800049,1758881455992,-480.0,0.00040273,30]
[387800050,1758881456001,-1173.95,0.00040273,30]
[387800051,1758881456011,-480.0,0.00040273,30]
[387800052,1758881456020,-480.0,0.00040273,30]
[387800053,1758881456029,-3727.55,0.00040273,30]
[387800054,1758881456038,-480.0,0.00040273,30]
[387800055,1758881456048,-804.45,0.00040273,30]
[387800056,1758881456059,-480.0,0.00040273,30]
[387800057,1758881456068,-480.0,0.00040273,30]
[387800058,1758881456078,-5582.33,0.00040273,30]
[387800059,1758881456087,-480.0,0.00040273,30]
[387800060,1758881456096,-678.62,0.00040273,30]
[387800061,1758881456106,-3073.8,0.00040273,30]
[387800062,1758881456115,-480.0,0.00040273,30]
[387800063,1758881456125,-925.22,0.00040273,30]
[387800064,1758881456134,-425.71416539,0.00040273,30]
[387800065,1758881456143,-480.0,0.00040273,30]
[387800066,1758881456153,-480.0,0.00040273,30]
[387800067,1758881456162,-1494.72,0.00040273,30]
[387800068,1758881456171,-480.0,0.00040273,30]
[387800069,1758881456181,-769.7,0.00040273,30]
[387800070,1758881456191,-480.0,0.00040273,30]
[387800071,1758881456200,-480.0,0.00040273,30]
[387800072,1758881456209,-1113.02,0.00040273,30]
[387800073,1758881456218,-894.64,0.00040273,30]
[387800074,1758881456228,-576.36,0.00040273,30]
[387800075,1758881456237,-480.0,0.00040273,30]
[387800076,1758881456246,-480.0,0.00040273,30]
[387800077,1758881456257,-1846.79,0.00040273,30]
[387800078,1758881456266,-980.47,0.00040273,30]
[387800079,1758881456276,-480.0,0.00040273,30]
[387800080,1758881456285,-509.86,0.00040273,30]
[387800081,1758881456295,-480.0,0.00040273,30]
[387800082,1758881456305,-480.0,0.00040273,30]
[387800083,1758881456313,-480.0,0.00040273,30]
[387800084,1758881456322,-540.0,0.00040273,30]
[387800085,1758881456331,-3940.36,0.00040273,30]
[387800086,1758881456340,-480.0,0.00040273,30]
[387800087,1758881456350,-480.0,0.00040273,30]
[387800088,1758881456360,-501.24,0.00040273,30]
[387800089,1758881456458,-480.0,0.00040273,30]
[387800090,1758881456470,-480.0,0.00040273,30]
[387800091,1758881456482,-480.0,0.00040273,30]
[387800092,1758881456491,-480.0,0.00040273,30]
[387800093,1758881456501,-480.0,0.00040273,30]
[387800094,1758881456509,-480.0,0.00040273,30]
[387800095,1758881456520,-480.0,0.00040273,30]
[387800096,1758881456529,-737.32,0.00040273,30]
[387800097,1758881456538,-480.0,0.00040273,30]
[387800098,1758881456547,-480.0,0.00040273,30]
[387800099,1758881456557,-738.47,0.00040273,21]
[387800100,1758881456567,-480.0,0.00040273,30]
[387800101,1758881456577,-1437.44,0.00040273,30]
[387800102,1758881456586,-901.43,0.00040273,30]
[387800103,1758881456595,-629.26,0.00040273,30]
[387800104,1758881456604,-1829.68,0.00040273,3]
[387800105,1758881456613,-480.0,0.00040273,30]
[387800106,1758881456623,-1293.99,0.00040273,30]
[387800107,1758881456633,-480.0,0.00040273,30]
[387800108,1758881456644,-480.0,0.00040273,30]
[387800109,1758881456653,-1545.06,0.00040273,30]
[387800110,1758881456663,-571.66,0.00040273,30]
[387800111,1758881456673,-759.11,0.00040273,30]
[387800112,1758881456682,-1618.94,0.00040273,30]
[387800113,1758881456691,-480.0,0.00040273,30]
[387800114,1758881456701,-480.0,0.00040273,30]
[387800115,1758881456709,-1400.63,0.00040273,30]
[387800116,1758881456718,-6529.19,0.00040273,30]
[387800117,1758881456727,-1015.05,0.00040273,30]
[387800118,1758881456737,-480.0,0.00040273,30]
[387800119,1758881456746,-670.08,0.00040273,30]
[387800120,1758881456756,-480.0,0.00040273,30]
[387800121,1758881456765,-480.0,0.00040273,30]
[387800122,1758881456774,-480.0,0.00040273,30]
[387800123,1758881456783,-1232.57,0.00040273,30]
[387800124,1758881456792,-480.0,0.00040273,30]
[387800125,1758881456801,-177.1084747,0.00040547,30]
[387800126,1758881456881,-302.8915253,0.00040547,30]
[387800127,1758881456890,-480.0,0.00040547,30]
[387800128,1758881456899,-480.0,0.00040547,30]
[387800129,1758881456908,-293.10793701,0.00040547,30]
[387800130,1758881456918,-480.0,0.00040547,30]
[387800131,1758881456927,-480.0,0.00040547,30]
[387800132,1758881456936,-59.18077618,0.00040547,30]
[387800133,1758881456947,-587.88922382,0.00040547,30]
[387800134,1758881456956,-480.0,0.00040547,30]
[387800135,1758881456965,-701.94,0.00040547,30]
[387800136,1758881456975,-541.98269103,0.00040547,30]
[387800137,1758881456986,-290.53730897,0.00040547,30]
[387800138,1758881456996,-480.0,0.00040547,30]
[387800139,1758881457005,-499.26,0.00040547,30]
[387800140,1758881457015,-480.0,0.00040547,30]
[387800141,1758881457025,-480.0,0.00040547,30]
[387800142,1758881457036,-947.96,0.00040547,30]
[387800143,1758881457046,-480.0,0.00040547,30]
[387800144,1758881457055,-480.0,0.00040547,30]
[387800145,1758881457065,-480.0,0.00040547,30]
[387800146,1758881457074,-480.0,0.00040547,30]
[387800147,1758881457084,-480.0,0.00040547,30]
[387800148,1758881457093,-695.06,0.00040547,30]
[387800149,1758881457103,-2156.02,0.00040547,30]
[387800150,1758881457112,-350.6589165,0.00040547,30]
[387800151,1758881457127,-129.3410835,0.00040547,30]
[387800152,1758881457138,-453.95891645,0.00040547,30]
[387800153,1758881457149,-56.43108355,0.00040547,30]
[387800154,1758881457159,-480.0,0.00040547,30]
[387800155,1758881457169,-480.0,0.00040547,30]
[387800156,1758881457179,-480.0,0.00040547,30]
[387800157,1758881457188,-1173.95,0.00040547,30]
[387800158,1758881457197,-480.0,0.00040547,30]
[387800159,1758881457206,-500.13080029,0.00040547,30]
[387800160,1758881457215,-3727.55,0.00040547,30]
[387800161,1758881457225,-480.0,0.00040547,30]
[387800162,1758881457234,-804.45,0.00040547,30]
[387800163,1758881457243,-480.0,0.00040547,30]
[387800164,1758881457253,-5582.33,0.00040547,30]
[387800165,1758881457262,-480.0,0.00040547,30]
[387800166,1758881457271,-678.62,0.00040547,30]
[387800167,1758881457280,-3073.8,0.00040547,30]
[387800168,1758881457289,-480.0,0.00040547,30]
[387800169,1758881457299,-925.22,0.00040547,30]
[387800170,1758881457307,-480.0,0.00040547,30]
[387800171,1758881457316,-480.0,0.00040547,30]
[387800172,1758881457325,-1494.72,0.00040547,30]
[387800173,1758881457334,-480.0,0.00040547,30]
[387800174,1758881457344,-769.7,0.00040547,30]
[387800175,1758881457353,-480.0,0.00040547,30]
[387800176,1758881457363,-480.0,0.00040547,30]
[387800177,1758881457372,-894.64,0.00040547,30]
[387800178,1758881457382,-1113.02,0.00040547,30]
[387800179,1758881457391,-576.36,0.00040547,30]
[387800180,1758881457400,-480.0,0.00040547,30]
[387800181,1758881457409,-480.0,0.00040547,30]
[387800182,1758881457418,-1846.79,0.00040547,30]
[387800183,1758881457428,-980.47,0.00040547,30]
[387800184,1758881457437,-480.0,0.00040547,30]
[387800185,1758881457446,-509.86,0.00040547,30]
[387800186,1758881457455,-480.0,0.00040547,30]
[387800187,1758881457465,-480.0,0.00040547,30]
[387800188,1758881457479,-480.0,0.00040547,30]
[387800189,1758881457490,-540.0,0.00040547,30]
[387800190,1758881457500,-3940.36,0.00040547,30]
[387800191,1758881457512,-480.0,0.00040547,30]
[387800192,1758881457522,-480.0,0.00040547,30]
[387800193,1758881457532,-501.24,0.00040547,30]
[387800194,1758881457542,-480.0,0.00040547,30]
[387800195,1758881457552,-480.0,0.00040547,30]
[387800196,1758881457562,-480.0,0.00040547,30]
[387800197,1758881457572,-480.0,0.00040547,30]
[387800198,1758881457581,-480.0,0.00040547,30]
[387800199,1758881457590,-480.0,0.00040547,30]
[387800200,1758881457600,-480.0,0.00040547,30]
[387800201,1758881457609,-737.32,0.00040547,30]
[387800202,1758881457619,-480.0,0.00040547,30]
[387800203,1758881457630,-480.0,0.00040547,30]
[387800204,1758881457640,-738.47,0.00040547,21]
[387800205,1758881457649,-480.0,0.00040547,30]
[387800206,1758881457658,-1437.44,0.00040547,30]
[387800207,1758881457668,-901.43,0.00040547,30]
[387800208,1758881457676,-629.26,0.00040547,30]
[387800209,1758881457686,-1829.68,0.00040547,3]
[387800210,1758881457698,-480.0,0.00040547,30]
[387800211,1758881457708,-1293.99,0.00040547,30]
[387800212,1758881457717,-480.0,0.00040547,30]
[387800213,1758881457726,-480.0,0.00040547,30]
[387800214,1758881457736,-1545.06,0.00040547,30]
[387800215,1758881457745,-571.66,0.00040547,30]
[387800216,1758881457759,-759.11,0.00040547,30]
[387800217,1758881457768,-1618.94,0.00040547,30]
[387800218,1758881457778,-480.0,0.00040547,30]
[387800219,1758881457788,-344.90027773,0.00040547,30]
[387800220,1758881457797,-1400.63,0.00040547,30]
[387800221,1758881457806,-6529.19,0.00040547,30]
[387800222,1758881457815,-1015.05,0.00040547,30]
[387800223,1758881457824,-480.0,0.00040547,30]
[387800224,1758881457834,-670.08,0.00040547,30]
[387800225,1758881457844,-480.0,0.00040547,30]
[387800226,1758881457853,-480.0,0.00040547,30]
[387800227,1758881457863,-480.0,0.00040547,30]
[387800228,1758881457873,-1232.57,0.00040547,30]
[387800229,1758881457885,-480.0,0.00040547,30]
[387800230,1758881457894,-160.0,0.00040635,4]
[387800231,1758881457903,-160.0,0.00040635,5]
[387800232,1758881457912,-605.31,0.00040725,120]
[387800233,1758881457921,-480.0,0.00040821,30]
[387800234,1758881457931,-480.0,0.00040821,30]
[387800235,1758881457941,-480.0,0.00040821,30]
[387800236,1758881457951,-480.0,0.00040821,30]
[387800237,1758881457961,-480.0,0.00040821,30]
[387800238,1758881457971,-647.07,0.00040821,30]
[387800239,1758881457981,-480.0,0.00040821,30]
[387800240,1758881457990,-701.94,0.00040821,30]
[387800241,1758881458000,-832.52,0.00040821,30]
[387800242,1758881458010,-572.87122002,0.00040821,30]
[387800243,1758881458019,-499.26,0.00040821,30]
[387800244,1758881458028,-480.0,0.00040821,30]
[387800245,1758881458037,-480.0,0.00040821,30]
[387800246,1758881458047,-947.96,0.00040821,30]
[387800247,1758881458056,-480.0,0.00040821,30]
[387800248,1758881458066,-480.0,0.00040821,30]
[387800249,1758881458075,-491.82664937,0.00040821,30]
[387800250,1758881458084,-480.0,0.00040821,30]
[387800251,1758881458094,-480.0,0.00040821,30]
[387800252,1758881458103,-695.06,0.00040821,30]
[387800253,1758881458113,-2156.02,0.00040821,30]
[387800254,1758881458122,-480.0,0.00040821,30]
[387800255,1758881458132,-510.39,0.00040821,30]
[387800256,1758881458141,-480.0,0.00040821,30]
[387800257,1758881458151,-480.0,0.00040821,30]
[387800258,1758881458161,-480.0,0.00040821,30]
[387800259,1758881458170,-1173.95,0.00040821,30]
[387800260,1758881458179,-480.0,0.00040821,30]
[387800261,1758881458188,-3727.55,0.00040821,30]